bitfinex-derivatives/quotes_ETHF0:USTF0_20260128
["timestamp","ask_amount","ask_price","bid_price","bid_amount"]
[1769639156661,0.13427677,3016.4,3015.7,0.19698103]
[1769639156868,1.19037619,3016.3,3015.7,0.00421735]
[1769639158269,1.19037619,3016.3,3015.5,2.13029657]
[1769639159268,1.19037619,3016.3,3015.5,2.13330935]
[1769639159666,0.13148913,3016.3,3015.5,2.13330935]
[1769639160266,0.13148913,3016.3,3015.6,0.18329657]
[1769639162070,0.08396298,3016.7,3015.6,0.18329657]
[1769639164166,0.07955965,3016.4,3015.5,1.95001278]
[1769639164871,0.07955965,3016.4,3015.5,2.13330935]
[1769639168474,0.07955965,3016.4,3015.5,0.18630935]
[1769639170269,1.98670698,3016.8,3015.5,0.18630935]
[1769639170577,3.24554536,3016.7,3015.5,0.18630935]
[1769639170868,3.24554536,3016.6,3015.5,0.18630935]
[1769639171073,1.98670698,3016.8,3015.5,0.18630935]
[1769639171264,3.24561748,3016.7,3015.5,0.18630935]
[1769639171460,3.24561748,3016.6,3015.5,0.18630935]
[1769639171676,1.98670698,3016.8,3015.5,0.18630935]
[1769639171973,0.070596,3016.4,3015.5,0.18630935]
[1769639177580,2.05186691,3016.7,3015.5,0.18630935]
[1769639177778,3.23962458,3016.6,3015.5,0.18630935]
[1769639178075,3.23962458,3016.5,3015.5,0.18630935]
[1769639178279,0.06515993,3016.7,3015.5,0.18630935]
[1769639178575,3.23954019,3016.6,3015.5,0.18630935]
[1769639178775,1.98670698,3016.9,3015.5,0.18630935]
[1769639178976,3.23948979,3016.8,3015.5,0.18630935]
[1769639179170,3.23948979,3016.7,3015.5,0.18630935]
[1769639179369,3.23948979,3016.6,3015.5,0.18630935]
[1769639179571,2.05036135,3016.9,3015.5,0.18630935]
[1769639179773,3.23982034,3016.8,3015.5,0.18630935]
[1769639179972,3.23982034,3016.7,3015.5,0.18630935]
[1769639180171,3.23982034,3016.6,3015.5,0.18630935]
[1769639180371,2.05036135,3016.9,3015.5,0.18630935]
[1769639180585,3.24034402,3016.8,3015.5,0.18630935]
[1769639180775,3.24034402,3016.7,3015.5,0.18630935]
[1769639180975,3.24034402,3016.6,3015.5,0.18630935]
[1769639181177,2.05036135,3016.9,3015.5,0.18630935]
[1769639181379,5.22792325,3016.8,3015.5,0.18630935]
[1769639181576,3.24121627,3016.7,3015.5,0.18630935]
[1769639181773,1.98670698,3016.9,3015.5,0.18630935]
[1769639181976,3.24117471,3016.8,3015.5,0.18630935]
[1769639182177,3.24117471,3016.7,3015.5,0.18630935]
[1769639182381,3.24117471,3016.6,3015.5,0.18630935]
[1769639182573,1.98670698,3016.9,3015.5,0.18630935]
[1769639182773,3.24252532,3016.8,3015.5,0.18630935]
[1769639183082,3.24252532,3016.7,3015.5,0.18630935]
[1769639183381,3.24252532,3016.6,3015.5,0.18630935]
[1769639183581,2.0500058,3016.9,3015.5,0.18630935]
[1769639183780,3.24283298,3016.8,3015.5,0.18630935]
[1769639184082,3.24283298,3016.7,3015.5,0.18630935]
[1769639188090,3.29781229,3016.7,3015.5,0.18630935]
[1769639188278,3.24283298,3016.6,3015.5,0.18630935]
[1769639188788,1.98670698,3016.8,3015.5,0.18630935]
[1769639188979,3.24427699,3016.7,3015.5,0.18630935]
[1769639189286,3.24427699,3016.6,3015.5,0.18630935]
[1769639189488,0.05506377,3016.7,3015.5,0.18630935]
[1769639189783,3.244257,3016.6,3015.5,0.18630935]
[1769639189981,0.05506377,3016.7,3015.5,0.18630935]
[1769639190183,3.24425706,3016.6,3015.5,0.18630935]
[1769639190378,0.05506377,3016.7,3015.5,0.18630935]
[1769639190575,3.24428802,3016.6,3015.5,0.18630935]
[1769639190776,0.05506377,3016.7,3015.5,0.18630935]
[1769639190980,3.24429271,3016.6,3015.5,0.18630935]
[1769639191181,0.05506377,3016.7,3015.5,0.18630935]
[1769639191381,3.24427648,3016.6,3015.5,0.18630935]
[1769639191584,0.05506377,3016.7,3015.5,0.18630935]
[1769639191783,3.24427683,3016.6,3015.5,0.18630935]
[1769639192079,0.05506377,3016.7,3015.5,0.18630935]
[1769639192280,3.24427454,3016.6,3015.5,0.18630935]
[1769639192480,0.05506377,3016.7,3015.5,0.18630935]
[1769639192686,3.24427358,3016.6,3015.5,0.18630935]
[1769639192885,0.05506377,3016.7,3015.5,0.18630935]
[1769639193087,3.24427342,3016.6,3015.5,0.18630935]
[1769639193291,0.05506377,3016.7,3015.5,0.18630935]
[1769639193485,3.24440321,3016.6,3015.5,0.18630935]
[1769639193679,0.05166428,3016.4,3015.6,2.126]
[1769639193884,0.05166428,3016.4,3015.6,0.16567703]
[1769639194089,0.05166428,3016.4,3015.5,0.00301278]
[1769639194477,0.05166428,3016.4,3015.5,0.16868981]
[1769639203993,3.29312638,3016.3,3015.5,0.16868981]
[1769639204193,0.04769087,3016.3,3015.5,0.16868981]
[1769639207294,0.04664512,3016.5,3015.5,0.16868981]
[1769639207495,3.24541295,3016.4,3015.5,0.16868981]
[1769639207697,0.04664512,3016.5,3015.5,0.16868981]
[1769639207995,3.25731505,3016.4,3015.5,0.16868981]
[1769639208196,0.04664512,3016.5,3015.5,0.16868981]
[1769639208395,3.25732795,3016.4,3015.5,0.16868981]
[1769639208599,0.04664512,3016.5,3015.5,0.16868981]
[1769639208800,3.25732672,3016.4,3015.5,0.16868981]
[1769639208993,0.04664512,3016.5,3015.5,0.16868981]
[1769639209194,3.25732598,3016.4,3015.5,0.16868981]
[1769639209392,0.04664512,3016.5,3015.5,0.16868981]
[1769639209593,3.25734135,3016.4,3015.5,0.16868981]
[1769639209794,0.04664512,3016.5,3015.5,0.16868981]
[1769639210000,3.25735144,3016.4,3015.5,0.16868981]
[1769639210198,1.98670698,3016.6,3015.5,0.16868981]
[1769639210403,3.25735368,3016.5,3015.5,0.16868981]
[1769639210610,3.25735368,3016.4,3015.5,0.16868981]
[1769639210812,2.03151746,3016.7,3015.5,0.16868981]
[1769639211012,3.25735006,3016.6,3015.5,0.16868981]
[1769639211313,3.25735006,3016.5,3015.5,0.16868981]
[1769639211514,3.25735006,3016.4,3015.5,0.16868981]
[1769639211714,0.04327887,3016.5,3015.5,0.16868981]
[1769639211913,3.2574216,3016.4,3015.5,0.16868981]
[1769639212113,0.04327887,3016.5,3015.5,0.16868981]
[1769639212314,3.25749721,3016.4,3015.5,0.16868981]
[1769639212515,0.04327887,3016.5,3015.5,0.16868981]
[1769639212717,3.25763318,3016.4,3015.5,0.16868981]
[1769639213014,0.04327887,3016.5,3015.5,0.16868981]
[1769639213216,3.2577364,3016.4,3015.5,0.16868981]
[1769639213414,0.04327887,3016.5,3015.5,0.16868981]
[1769639213611,3.2577366,3016.4,3015.5,0.16868981]
[1769639213810,0.04327887,3016.5,3015.5,0.16868981]
[1769639214119,3.25763606,3016.4,3015.5,0.16868981]
[1769639214416,0.04327887,3016.5,3015.5,0.16868981]
[1769639214616,3.25769587,3016.4,3015.5,0.16868981]
[1769639214818,0.04327887,3016.5,3015.5,0.16868981]
[1769639215020,3.25767746,3016.4,3015.5,0.16868981]
[1769639215219,0.04327887,3016.5,3015.5,0.16868981]
[1769639215416,3.25777671,3016.4,3015.5,0.16868981]
[1769639215618,1.98670698,3016.6,3015.5,0.16868981]
[1769639215812,3.25778303,3016.5,3015.5,0.16868981]
[1769639216012,3.25778303,3016.4,3015.5,0.16868981]
[1769639216320,1.98670698,3016.6,3015.5,0.16868981]
[1769639216620,3.25778384,3016.5,3015.5,0.16868981]
[1769639216918,3.25778384,3016.4,3015.5,0.16868981]
[1769639217219,2.02835768,3016.6,3015.5,0.16868981]
[1769639217420,3.25788121,3016.5,3015.5,0.16868981]
[1769639217620,3.25788121,3016.4,3015.5,0.16868981]
[1769639217918,2.02835768,3016.6,3015.5,0.16868981]
[1769639218112,3.25786898,3016.5,3015.5,0.16868981]
[1769639218313,3.25786898,3016.4,3015.5,0.16868981]
[1769639218612,2.02835768,3016.6,3015.5,0.16868981]
[1769639218813,3.29699621,3016.5,3015.5,0.16868981]
[1769639219020,3.25796194,3016.4,3015.5,0.16868981]
[1769639219221,0.03903427,3016.5,3015.5,0.16868981]
[1769639219520,0.03858253,3016.3,3015.5,0.16868981]
[1769639221623,0.03767585,3016.5,3015.5,0.16868981]
[1769639221822,3.25848925,3016.4,3015.5,0.16868981]
[1769639222122,0.03767585,3016.5,3015.5,0.16868981]
[1769639222421,3.25880159,3016.4,3015.5,0.16868981]
[1769639222722,0.03767585,3016.5,3015.5,0.16868981]
[1769639222921,0.03524789,3016.3,3015.5,0.16868981]
[1769639223116,0.03524789,3016.1,3015.5,0.00301278]
[1769639223317,0.03524789,3016.1,3015.3,0.16005362]
[1769639223516,3.2928696,3016.0,3015.3,0.16005362]
[1769639223719,0.03481928,3016.0,3015.3,0.16005362]
[1769639224223,0.03481928,3016.0,3015.3,0.16241707]
[1769639226727,0.03505253,3016.2,3015.3,0.16241707]
[1769639226926,3.25502445,3016.1,3015.4,0.16005362]
[1769639227128,0.03505253,3016.2,3015.4,0.16005362]
[1769639227327,3.2544916,3016.1,3015.4,0.16005362]
[1769639227527,0.03505253,3016.2,3015.4,0.16005362]
[1769639227827,3.25449041,3016.1,3015.4,0.16005362]
[1769639228028,0.03505253,3016.2,3015.4,0.16005362]
[1769639228215,3.25421376,3016.1,3015.4,0.16005362]
[1769639228421,0.03505253,3016.2,3015.4,0.16005362]
[1769639228723,3.25421488,3016.1,3015.4,0.16005362]
[1769639228924,0.03505253,3016.2,3015.4,0.16005362]
[1769639229122,3.25421257,3016.1,3015.4,0.16005362]
[1769639229325,0.03505253,3016.2,3015.4,0.16005362]
[1769639230827,1.98670698,3016.4,3015.4,0.16005362]
[1769639231033,3.25388679,3016.3,3015.4,0.16005362]
[1769639231331,3.25388679,3016.2,3015.4,0.16005362]
[1769639231522,0.03202534,3016.3,3015.4,0.16005362]
[1769639231727,3.25367528,3016.2,3015.4,0.16005362]
[1769639231932,0.03202534,3016.3,3015.4,0.16005362]
[1769639232128,3.25367619,3016.2,3015.4,0.16005362]
[1769639232325,0.03202534,3016.3,3015.4,0.16005362]
[1769639232626,0.03163863,3016.1,3015.4,0.16005362]
[1769639233931,0.03163863,3016.1,3015.0,1.947]
[1769639233932,0.03125621,3015.8,3015.0,0.16005362]
[1769639234929,0.03125621,3015.8,3015.0,0.16387653]
[1769639235234,1.05728814,3015.7,3015.0,0.16387653]
[1769639235736,0.15399833,3015.6,3014.3,1.05728814]
[1769639235934,0.15399833,3015.6,3014.4,2.126]
[1769639236136,0.15399833,3015.6,3014.5,1.05728814]
[1769639236821,0.15399833,3015.6,3014.5,1.06083858]
[1769639237836,0.15399833,3015.9,3014.9,0.16005362]
[1769639239437,0.15399833,3016.1,3015.1,0.16005362]
[1769639239736,3.24439183,3016.0,3015.1,0.16005362]
[1769639239929,0.15399833,3016.2,3015.1,0.16005362]
[1769639240124,3.39612044,3016.1,3015.1,0.16005362]
[1769639240331,3.39612044,3016.0,3015.1,0.16005362]
[1769639240530,0.15399833,3016.0,3015.1,0.16005362]
[1769639240734,0.15399833,3015.8,3015.1,0.16005362]
[1769639245538,0.15399833,3015.8,3014.9,0.1489734]
[1769639245836,0.15047119,3015.6,3014.9,0.1489734]
[1769639248646,1.05728814,3015.7,3014.9,0.1489734]
[1769639250046,1.21590008,3015.7,3014.9,0.1489734]
[1769639251140,0.15861194,3015.7,3014.9,0.1489734]
[1769639253953,0.15861194,3015.9,3014.9,0.1489734]
[1769639254144,3.40034568,3015.8,3014.9,0.1489734]
[1769639254344,0.15861194,3015.8,3014.9,0.1489734]
[1769639261155,3.2456727,3015.7,3014.9,0.1489734]
[1769639261358,0.15861194,3015.8,3014.9,0.1489734]
[1769639261653,3.24578851,3015.7,3014.9,0.1489734]
[1769639261846,0.15861194,3015.8,3014.9,0.1489734]
[1769639262046,3.24550065,3015.7,3014.9,0.1489734]
[1769639262249,0.15861194,3015.8,3014.9,0.1489734]
[1769639262448,3.24640721,3015.7,3014.9,0.1489734]
[1769639262651,0.15861194,3015.8,3014.9,0.1489734]
[1769639262852,3.24641371,3015.7,3014.9,0.1489734]
[1769639263050,0.15861194,3015.8,3014.9,0.1489734]
[1769639263253,3.24736982,3015.7,3014.9,0.1489734]
[1769639263555,0.15861194,3015.8,3014.9,0.1489734]
[1769639263755,3.24743716,3015.7,3014.9,0.1489734]
[1769639263953,0.15861194,3015.8,3014.9,0.1489734]
[1769639264157,3.24743761,3015.7,3014.9,0.1489734]
[1769639264358,0.15861194,3015.8,3014.9,0.1489734]
[1769639264558,3.2475732,3015.7,3014.9,0.1489734]
[1769639264858,0.15861194,3015.8,3014.9,0.1489734]
[1769639265056,3.24753842,3015.7,3014.9,0.1489734]
[1769639265357,0.15861194,3015.8,3014.9,0.1489734]
[1769639265558,3.24759971,3015.7,3014.9,0.1489734]
[1769639265751,0.15861194,3015.8,3014.9,0.1489734]
[1769639265952,3.24773624,3015.7,3014.9,0.1489734]
[1769639266153,0.15861194,3015.8,3014.9,0.1489734]
[1769639266350,3.24780039,3015.7,3014.9,0.1489734]
[1769639266651,0.15861194,3015.8,3014.9,0.1489734]
[1769639266850,3.24780033,3015.7,3014.9,0.1489734]
[1769639267058,0.15861194,3015.8,3014.9,0.1489734]
[1769639267258,3.24786301,3015.7,3014.9,0.1489734]
[1769639267460,0.15861194,3015.8,3014.9,0.1489734]
[1769639267652,3.24791215,3015.7,3014.9,0.1489734]
[1769639267853,0.15861194,3015.8,3014.9,0.1489734]
[1769639268053,3.24654879,3015.7,3014.9,0.1489734]
[1769639268258,0.15861194,3015.8,3014.9,0.1489734]
[1769639268459,3.24654749,3015.7,3014.9,0.1489734]
[1769639268658,0.15861194,3015.8,3014.9,0.1489734]
[1769639268958,3.24663922,3015.7,3014.9,0.1489734]
[1769639269159,0.15861194,3015.8,3014.9,0.1489734]
[1769639269364,3.24665196,3015.7,3014.9,0.1489734]
[1769639269551,0.15861194,3015.8,3014.9,0.1489734]
[1769639269751,3.24665088,3015.7,3014.9,0.1489734]
[1769639269957,0.15861194,3015.8,3014.9,0.1489734]
[1769639270261,3.24665263,3015.7,3014.9,0.1489734]
[1769639270461,0.15861194,3015.8,3014.9,0.1489734]
[1769639270651,3.24700621,3015.7,3014.9,0.1489734]
[1769639270850,0.15861194,3015.8,3014.9,0.1489734]
[1769639271055,3.24700618,3015.7,3014.9,0.1489734]
[1769639271355,0.15861194,3015.8,3014.9,0.1489734]
[1769639271551,3.24702225,3015.7,3014.9,0.1489734]
[1769639271755,0.15861194,3015.8,3014.9,0.1489734]
[1769639272057,2.14531892,3016.0,3015.1,0.15844159]
[1769639272260,3.24699471,3015.9,3015.1,0.15844159]
[1769639272462,3.24699471,3015.8,3015.1,0.15844159]
[1769639272656,0.15861194,3016.0,3015.1,0.15844159]
[1769639272856,3.24685034,3015.9,3015.1,0.15844159]
[1769639273060,3.24685034,3015.8,3015.1,0.15844159]
[1769639273257,0.15861194,3016.0,3015.1,0.15844159]
[1769639273460,3.24664467,3015.9,3015.1,0.15844159]
[1769639273771,3.24664467,3015.8,3015.1,0.15844159]
[1769639273957,0.15861194,3016.0,3015.1,0.15844159]
[1769639274264,3.24667549,3015.9,3015.1,0.15844159]
[1769639274562,3.24667549,3015.8,3015.1,0.15844159]
[1769639274762,0.15861194,3016.0,3015.1,0.15844159]
[1769639274960,3.2464845,3015.9,3015.1,0.15844159]
[1769639275262,3.2464845,3015.8,3015.1,0.15844159]
[1769639275560,0.15861194,3016.0,3015.1,0.15844159]
[1769639275765,3.24638859,3015.9,3015.1,0.15844159]
[1769639275962,3.24638859,3015.8,3015.1,0.15844159]
[1769639276162,0.15861194,3016.0,3015.1,0.15844159]
[1769639276365,3.24628681,3015.9,3015.1,0.15844159]
[1769639276663,3.24628681,3015.8,3015.1,0.15844159]
[1769639276859,0.15861194,3016.0,3015.1,0.15844159]
[1769639277161,3.24630504,3015.9,3015.1,0.15844159]
[1769639277360,3.24630504,3015.8,3015.1,0.15844159]
[1769639277563,0.15861194,3016.0,3015.1,0.15844159]
[1769639277866,3.2462129,3015.9,3015.1,0.15844159]
[1769639278161,3.2462129,3015.8,3015.1,0.15844159]
[1769639278365,0.15861194,3016.0,3015.1,0.15844159]
[1769639278661,3.24607739,3015.9,3015.1,0.15844159]
[1769639278861,3.24607739,3015.8,3015.1,0.15844159]
[1769639279063,0.15861194,3016.0,3015.1,0.15844159]
[1769639279264,3.2464742,3015.9,3015.1,0.15844159]
[1769639279566,3.2464742,3015.8,3015.1,0.15844159]
[1769639279864,0.15861194,3016.0,3015.1,0.15844159]
[1769639280054,3.2464699,3015.9,3015.1,0.15844159]
[1769639280256,3.2464699,3015.8,3015.1,0.15844159]
[1769639280456,0.15861194,3016.0,3015.1,0.15844159]
[1769639280658,3.40335087,3015.9,3015.1,0.15844159]
[1769639280858,3.24833223,3015.8,3015.1,0.15844159]
[1769639281059,0.15501864,3015.9,3015.1,0.15844159]
[1769639281259,3.40375513,3015.8,3015.1,0.15844159]
[1769639281460,0.15501864,3015.8,3015.1,0.15844159]
[1769639297075,3.25175997,3015.7,3015.1,0.15844159]
[1769639297372,0.15501864,3015.8,3015.1,0.15844159]
[1769639297576,3.25177759,3015.7,3015.1,0.15844159]
[1769639297775,0.15501864,3015.8,3015.1,0.15844159]
[1769639304979,3.25095585,3015.7,3015.1,0.15844159]
[1769639305177,0.15501864,3015.8,3015.1,0.15844159]
[1769639305378,3.25094071,3015.7,3015.1,0.15844159]
[1769639305582,0.15501864,3015.8,3015.1,0.15844159]
[1769639305781,3.25092379,3015.7,3015.1,0.15844159]
[1769639305975,0.15501864,3015.8,3015.1,0.15844159]
[1769639306172,3.25092368,3015.7,3015.1,0.15844159]
[1769639306465,0.15501864,3015.8,3015.1,0.15844159]
[1769639306671,3.25085471,3015.7,3015.1,0.15844159]
[1769639306970,0.15501864,3015.8,3015.1,0.15844159]
[1769639307169,3.25090989,3015.7,3015.1,0.15844159]
[1769639307377,2.14082939,3016.0,3015.1,0.15844159]
[1769639307577,3.25088117,3015.9,3015.1,0.15844159]
[1769639307775,3.25088117,3015.8,3015.1,0.15844159]
[1769639307976,2.14082939,3016.0,3015.1,0.15844159]
[1769639308173,3.25091369,3015.9,3015.1,0.15844159]
[1769639308373,3.25091369,3015.8,3015.1,0.15844159]
[1769639308583,0.14251666,3015.9,3015.1,0.15844159]
[1769639308878,3.25090608,3015.8,3015.1,0.15844159]
[1769639309080,0.14251666,3015.9,3015.1,0.15844159]
[1769639309280,3.25090079,3015.8,3015.1,0.15844159]
[1769639309478,0.14251666,3015.9,3015.1,0.15844159]
[1769639309781,3.25092414,3015.8,3015.1,0.15844159]
[1769639310082,0.14251666,3015.9,3015.1,0.15844159]
[1769639310383,3.25092836,3015.8,3015.1,0.15844159]
[1769639310578,0.14251666,3015.9,3015.1,0.15844159]
[1769639310781,3.25093631,3015.8,3015.1,0.15844159]
[1769639310982,0.14251666,3015.9,3015.1,0.15844159]
[1769639311282,3.25093631,3015.8,3015.1,0.15844159]
[1769639311482,0.14251666,3015.9,3015.1,0.15844159]
[1769639311687,3.25096609,3015.8,3015.1,0.15844159]
[1769639311983,0.14251666,3015.9,3015.1,0.15844159]
[1769639312184,3.39347487,3015.8,3015.1,0.15844159]
[1769639312386,0.14251666,3015.8,3015.1,0.15844159]
[1769639312580,3.25097953,3015.7,3015.1,0.15844159]
[1769639312879,0.14251666,3015.8,3015.1,0.15844159]
[1769639313683,3.25099646,3015.7,3015.1,0.15844159]
[1769639313987,0.14251666,3015.8,3015.1,0.15844159]
[1769639314284,3.25097867,3015.7,3015.1,0.15844159]
[1769639314484,0.14251666,3015.8,3015.1,0.15844159]
[1769639319481,1.98670698,3016.0,3015.1,0.15844159]
[1769639319689,3.3935734,3015.9,3015.1,0.15844159]
[1769639319880,3.25105674,3015.8,3015.1,0.15844159]
[1769639320080,0.14251666,3015.9,3015.1,0.15844159]
[1769639320377,3.25105926,3015.8,3015.1,0.15844159]
[1769639320577,0.14251666,3015.9,3015.1,0.15844159]
[1769639320777,3.25127101,3015.8,3015.1,0.15844159]
[1769639320978,0.14251666,3015.9,3015.1,0.15844159]
[1769639321178,3.25164145,3015.8,3015.1,0.15844159]
[1769639321388,0.14251666,3015.9,3015.1,0.15844159]
[1769639321588,3.25166784,3015.8,3015.1,0.15844159]
[1769639321787,0.14251666,3015.9,3015.1,0.15844159]
[1769639321988,3.25165593,3015.8,3015.1,0.15844159]
[1769639322188,0.14251666,3015.9,3015.1,0.15844159]
[1769639322383,3.25167027,3015.8,3015.1,0.15844159]
[1769639322583,0.14251666,3015.9,3015.1,0.15844159]
[1769639322782,3.25166818,3015.8,3015.1,0.15844159]
[1769639322984,0.14251666,3015.9,3015.1,0.15844159]
[1769639323183,3.25152803,3015.8,3015.1,0.15844159]
[1769639323389,0.14251666,3015.9,3015.1,0.15844159]
[1769639323591,3.25152198,3015.8,3015.1,0.15844159]
[1769639323792,0.14251666,3015.9,3015.1,0.15844159]
[1769639324089,3.25152343,3015.8,3015.1,0.15844159]
[1769639324289,0.14251666,3015.9,3015.1,0.15844159]
[1769639324492,3.25152256,3015.8,3015.1,0.15844159]
[1769639324688,0.14251666,3015.9,3015.1,0.15844159]
[1769639324891,3.25152143,3015.8,3015.1,0.15844159]
[1769639325092,0.14251666,3015.9,3015.1,0.15844159]
[1769639325291,3.39404789,3015.8,3015.1,0.15844159]
[1769639325491,0.14251666,3015.8,3015.1,0.15844159]
[1769639325794,3.25150998,3015.7,3015.1,0.15844159]
[1769639325995,0.14251666,3015.8,3015.1,0.15844159]
[1769639326497,2.12922364,3016.0,3015.1,0.15844159]
[1769639326793,3.25158169,3015.9,3015.1,0.15844159]
[1769639326996,3.25158169,3015.8,3015.1,0.15844159]
[1769639327199,2.12922364,3016.1,3015.1,0.15844159]
[1769639327388,3.25165138,3016.0,3015.1,0.15844159]
[1769639327592,3.25165138,3015.9,3015.1,0.15844159]
[1769639327992,3.25165138,3015.8,3015.1,0.15844159]
[1769639328290,2.12922364,3016.1,3015.1,0.15844159]
[1769639328491,3.24900762,3016.0,3015.1,0.15844159]
[1769639328697,3.24900762,3015.9,3015.1,0.15844159]
[1769639328896,3.24900762,3015.8,3015.1,0.15844159]
[1769639329100,2.12922364,3016.1,3015.1,0.15844159]
[1769639329296,3.24907569,3016.0,3015.1,0.15844159]
[1769639329493,3.24907569,3015.9,3015.1,0.15844159]
[1769639329793,3.24907569,3015.8,3015.1,0.15844159]
[1769639329992,2.12922364,3016.1,3015.1,0.15844159]
[1769639330198,3.39152819,3016.0,3015.1,0.15844159]
[1769639330496,3.24901153,3015.9,3015.1,0.15844159]
[1769639330696,3.24901153,3015.8,3015.1,0.15844159]
[1769639330886,0.14251666,3016.0,3015.1,0.15844159]
[1769639331090,3.24892868,3015.9,3015.1,0.15844159]
[1769639331285,3.24892868,3015.8,3015.1,0.15844159]
[1769639331498,0.14251666,3016.0,3015.1,0.15844159]
[1769639331800,3.24948856,3015.9,3015.1,0.15844159]
[1769639332098,3.24948856,3015.8,3015.1,0.15844159]
[1769639332299,0.14251666,3016.0,3015.1,0.15844159]
[1769639332492,3.24963601,3015.9,3015.1,0.15844159]
[1769639332693,3.24963601,3015.8,3015.1,0.15844159]
[1769639332993,0.14251666,3016.0,3015.1,0.15844159]
[1769639333189,3.24974266,3015.9,3015.1,0.15844159]
[1769639333390,3.24974266,3015.8,3015.1,0.15844159]
[1769639333595,0.14251666,3016.0,3015.1,0.15844159]
[1769639333896,3.25006396,3015.9,3015.1,0.15844159]
[1769639334096,3.25006396,3015.8,3015.1,0.15844159]
[1769639334297,0.14251666,3016.0,3015.1,0.15844159]
[1769639334499,3.25067193,3015.9,3015.1,0.15844159]
[1769639334800,3.25067193,3015.8,3015.1,0.15844159]
[1769639334993,0.14251666,3016.0,3015.1,0.15844159]
[1769639335193,3.25066584,3015.9,3015.1,0.15844159]
[1769639335394,3.25066584,3015.8,3015.1,0.15844159]
[1769639335600,0.14251666,3016.0,3015.1,0.15844159]
[1769639335901,3.25065392,3015.9,3015.1,0.15844159]
[1769639336102,3.25065392,3015.8,3015.1,0.15844159]
[1769639336400,0.14251666,3016.0,3015.1,0.15844159]
[1769639336601,3.25042634,3015.9,3015.1,0.15844159]
[1769639336800,3.25042634,3015.8,3015.1,0.15844159]
[1769639337100,0.14251666,3016.0,3015.1,0.15844159]
[1769639337301,3.2504773,3015.9,3015.1,0.15844159]
[1769639337490,3.2504773,3015.8,3015.1,0.15844159]
[1769639337692,0.14251666,3016.0,3015.1,0.15844159]
[1769639337893,3.25051273,3015.9,3015.1,0.15844159]
[1769639338093,3.39993553,3015.8,3015.1,0.15844159]
[1769639338302,0.1494228,3015.8,3015.1,0.15844159]
[1769639340197,1.98670698,3016.0,3015.1,0.15844159]
[1769639340401,0.1494228,3016.1,3015.1,0.15844159]
[1769639340601,3.40030818,3016.0,3015.1,0.15844159]
[1769639340800,0.1494228,3016.0,3015.2,2.26316362]
[1769639341100,0.1494228,3016.0,3015.3,0.14816362]
[1769639342699,0.1494228,3016.3,3015.3,0.14816362]
[1769639343000,3.24923206,3016.2,3015.3,0.14816362]
[1769639343200,0.1494228,3016.3,3015.3,0.14816362]
[1769639343402,3.39863452,3016.2,3015.3,0.14816362]
[1769639343604,0.1494228,3016.2,3015.4,0.14816362]
[1769639344196,2.13612978,3016.6,3015.8,0.14816362]
[1769639344399,3.24777369,3016.5,3015.8,0.14816362]
[1769639344600,3.24777369,3016.4,3015.8,0.14816362]
[1769639345998,0.1494228,3016.5,3015.8,0.14816362]
[1769639349907,0.14522617,3016.7,3015.8,0.14816362]
[1769639355011,0.13686033,3016.9,3015.9,1.0573715]
[1769639355211,0.13686033,3016.9,3016.0,0.14816362]
[1769639367820,0.13025142,3017.1,3016.0,0.14816362]
[1769639369221,0.1303127,3017.3,3016.4,0.14036133]
[1769639373133,0.1303127,3017.3,3016.5,0.14036133]
[1769639373328,0.13644826,3017.5,3016.5,0.14036133]
[1769639373518,3.23793627,3017.4,3016.5,0.14036133]
[1769639373722,0.13644826,3017.5,3016.5,0.14036133]
[1769639373924,3.2379159,3017.4,3016.5,0.14036133]
[1769639374124,0.13644826,3017.5,3016.5,0.14036133]
[1769639374325,3.37198524,3017.4,3016.5,0.14036133]
[1769639374524,0.13405862,3017.4,3016.5,0.14036133]
[1769639384140,1.19143012,3017.4,3016.5,0.14036133]
[1769639385040,0.132826,3017.3,3016.5,0.14036133]
[1769639386842,0.13518772,3017.5,3016.5,0.14036133]
[1769639387138,3.23768641,3017.4,3016.5,0.14036133]
[1769639387341,0.13518772,3017.5,3016.5,0.14036133]
[1769639389240,3.37195542,3017.4,3016.5,0.14036133]
[1769639389443,0.13349388,3017.4,3016.5,0.14036133]
[1769639391743,0.00232781,3017.5,3016.5,0.14036133]
[1769639392042,0.00232781,3017.5,3017.0,0.14036133]
[1769639392242,0.13601515,3017.5,3017.0,0.14322623]
[1769639392646,0.00232781,3017.5,3017.0,0.14322623]
[1769639394539,0.13490708,3017.7,3017.0,0.14322623]
[1769639394747,3.23919166,3017.6,3017.0,0.14322623]
[1769639395044,0.13490708,3017.7,3017.0,0.14322623]
[1769639395245,3.23912577,3017.6,3017.0,0.14322623]
[1769639395443,0.00327576,3017.6,3017.0,0.14322623]
[1769639398347,1.19435478,3017.5,3017.0,0.0028649]
[1769639399249,0.13698328,3017.5,3017.0,0.0028649]
[1769639400041,0.13698328,3017.5,3017.0,0.14944962]
[1769639400242,0.00327576,3017.6,3017.0,0.14944962]
[1769639400442,3.24145342,3017.5,3017.0,0.14944962]
[1769639400640,0.00327576,3017.6,3017.0,0.14944962]
[1769639401747,3.24142053,3017.5,3017.0,0.14944962]
[1769639401946,1.98210518,3017.8,3017.0,0.14944962]
[1769639402155,1.98210518,3018.0,3017.2,0.14658472]
[1769639402446,1.98210518,3018.1,3017.4,0.14658472]
[1769639402645,1.98210518,3018.3,3017.4,0.14658472]
[1769639403050,1.98638879,3018.3,3017.4,0.14658472]
[1769639403446,0.00428361,3018.3,3017.4,0.14658472]
[1769639403855,0.14396362,3018.3,3017.4,0.14658472]
[1769639406349,0.14396362,3018.3,3017.0,0.0028649]
[1769639406552,0.13722282,3018.0,3017.0,0.0028649]
[1769639406947,0.13473883,3017.9,3017.0,0.0028649]
[1769639407349,0.13473883,3017.6,3016.5,0.14658472]
[1769639407856,0.13469717,3017.2,3015.9,0.14658472]
[1769639408259,0.13469717,3017.2,3015.9,0.14998963]
[1769639410959,0.1400617,3017.4,3015.9,0.14998963]
[1769639411356,2.12216688,3017.6,3016.3,0.14658472]
[1769639411557,0.1400617,3017.6,3016.3,0.14658472]
[1769639412664,2.12108439,3017.7,3016.3,0.14658472]
[1769639413057,0.13897921,3017.7,3016.3,0.14658472]
[1769639413269,2.12108439,3017.9,3016.3,0.14658472]
[1769639413672,1.98210518,3018.2,3016.7,0.14658472]
[1769639413870,0.13667019,3018.0,3016.9,0.14658472]
[1769639414063,1.98210518,3018.1,3016.9,0.14658472]
[1769639414064,0.13667019,3017.8,3016.9,0.14658472]
[1769639414767,0.13667019,3017.8,3016.7,1.946]
[1769639415175,0.13667019,3017.8,3016.7,2.09258472]
[1769639415575,0.13663144,3017.6,3016.7,2.09258472]
[1769639418572,0.13663144,3017.6,3016.8,0.14658472]
[1769639424773,0.13663144,3017.6,3016.7,1.946]
[1769639425276,0.13663144,3017.6,3016.7,2.08102043]
[1769639426678,0.13017282,3017.4,3016.7,1.946]
[1769639426879,0.13017282,3017.4,3016.5,0.13502043]
[1769639431283,0.13017282,3017.4,3016.0,0.14803143]
[1769639431474,0.12971411,3017.2,3016.0,0.14803143]
[1769639431984,3.2305994,3017.1,3016.0,0.14803143]
[1769639432185,0.1296841,3017.0,3016.0,0.14803143]
[1769639442293,0.12538601,3016.8,3016.0,0.14803143]